Cogmind - Beta 15 @@@ ROGUE MODE // 2025.08.25 @ 15:53:18 Player: JuustuToug Result: Smashed by cave-in Performance ------------- Evolutions (0) 0 Regions Visited (0) 0 Robots Destroyed (0) 0 Value Destroyed (0) 0 Prototype IDs (0) 0 Alien Tech Used (0) 0 Bonus (0) 0 TOTAL SCORE: 0 Bonus ------- None Cogmind --------- Core Integrity 0/250 Matter 139/300 Energy 100/100 System Corruption 4% Temperature Cool (0) Movement Core (100) Ox1 Location -11/Scrapyard Parts ------- > --- POWER (1) -------- (None) > --- PROPULSION (2) --- (None) > --- UTILITY (2) ------ Small Storage Unit > --- WEAPON (2) ------- (None) > --- INVENTORY (8) ---- Light Ion Engine Peak State ------------ > --- POWER ------------ Ion Engine > --- PROPULSION ------- Light Treads > --- UTILITY ---------- Small Storage Unit > --- WEAPON ----------- Assault Rifle Light Assault Rifle > --- INVENTORY -------- Light Ion Engine [Rating: 5] Favorites ----------- Power Ion Engine Engine Ion Engine Propulsion Light Treads Treads Light Treads Utility Small Storage Unit Storage Small Storage Unit Weapon Light Assault Rifle Ballistic Gun Light Assault Rifle Build | -11 ------- Run | Yrd Slots Evolved . | . Power . | . Propulsion . | . Utility . | . Weapon . | . Parts Attached 6 | 6 Power 2 | 2 Engine 2 | 2 Core . | . Reactor . | . Propulsion 1 | 1 Treads 1 | 1 Leg . | . Wheel . | . Hover . | . Flight . | . Utility 1 | 1 Device . | . Storage 1 | 1 Processor . | . Hackware . | . Protection . | . Artifact . | . Weapon 2 | 2 Energy Gun . | . Energy Cannon . | . Ballistic Gun 2 | 2 Ballistic Cannon . | . Launcher . | . Special Weapon . | . Impact Weapon . | . Slashing Weapon . | . Piercing Weapon . | . Special Melee Weapon . | . Unidentified Prototypes . | . Parts Lost 4 | 4 Power 1 | 1 Propulsion 1 | 1 Utility . | . Weapon 2 | 2 Highest Loss Streak 4 | 4 To Critical Strikes . | . Average Backups 1 | 1 Power 1 | 1 Propulsion . | . Utility . | . Weapon . | . Tool/Special . | . Unused Backups . | . Power . | . Propulsion . | . Utility . | . Weapon . | . Tool/Special . | . Average Slot Usage (%) . | . Peak Build Rating 5 | 5 Average Rating 4 | 4 On Entrance . | . Naked Turns . | . Heaviest Build 13 | 13 Greatest Support 20 | 20 Greatest Overweight (x) 3 | 3 Average Overweight (x) . | . Largest Inventory Capacity 8 | 8 Average Capacity 7 | 7 Most Carried 5 | 5 Average Carried 1 | 1 Final Capacity 8 | 8 Final Carried 1 | 1 Class Distribution -------------------- None Dominant Class ---------------- None Resources | -11 ----------- Run | Yrd Matter Collected 95 | 95 Remotely . | . Salvage Created . | . Parts . | . Haulers Intercepted . | . Recyclers Shooed . | . Parts Field Recycled . | . Retrieved Matter . | . Parts Self-Destructed . | . Prevented . | . Kills | -11 ------- Run | Yrd Combat Hostiles Destroyed . | . Classes Destroyed . | . Best Kill Streak . | . Combat Bots Only . | . Max Kills in Single Turn . | . Gunslinging . | . Exploded . | . Melee . | . Uniques/NPCs Destroyed . | . Combat | -11 -------- Run | Yrd Hostile Shots Fired 16 | 16 Missed . | . Hits 16 | 16 Projectile 16 | 16 AOE 16 | 16 Damage Taken 765 | 765 Core 253 | 253 Absorbed by Shields . | . Core Remaining (%) . | . Volleys Fired 3 | 3 Largest 2 | 2 Hottest 40 | 40 Shots Fired 4 | 4 Gun 4 | 4 Cannon . | . Launcher . | . Special . | . Kinetic 4 | 4 Thermal . | . Explosive . | . Electromagnetic . | . Robot Hit Streak 4 | 4 Robot Miss Streak . | . Penetration Max . | . Secondary Targets . | . Shots Hit Robots 4 | 4 Core Hits 2 | 2 Critical Kills . | . Critical Parts Destroyed . | . Critical Strikes . | . Melee Attacks . | . Impact . | . Slashing . | . Piercing . | . Sneak Attacks . | . Combat Hostiles . | . Follow-up Attacks . | . Damage Inflicted 37 | 37 Guns 37 | 37 Cannons . | . Explosions . | . Melee . | . Ramming . | . Kinetic 37 | 37 Thermal . | . Explosive . | . Electromagnetic . | . Impact . | . Slashing . | . Piercing . | . Highest Corruption . | . Average Corruption . | . Corruption Purged . | . Corruption Blocked . | . Overload Shots . | . Overflow Damage . | . Projectiles . | . Explosions . | . Melee . | . Knockbacks . | . Impact . | . Kinetic . | . Secondary . | . Self-Inflicted Damage . | . Shots . | . Rammed . | . Targets Rammed . | . Kicked . | . Crushed . | . Highest Temperature . | . Average Temperature . | . Received Heat Transfer . | . Siege Activations . | . Martial Activations . | . Shielding Activations . | . Robots Disrupted . | . Combat Hostiles . | . Robots Corrupted . | . Combat Hostiles . | . Parts Fried . | . Impact Corruptions . | . Robots Melted . | . Combat Hostiles . | . Parts Melted . | . Heat Transferred . | . Parts Sabotaged . | . Parts Stolen . | . Parts Stripped . | . Power Chain Reactions . | . Alert | -11 ------- Run | Yrd Maximum Alert Level . | . Low Security (%) 100 | 100 Level 1 . | . Level 2 . | . Level 3 . | . Level 4 . | . Level 5 . | . High Security . | . Max Security . | . Peak Influence . | . Initial . | . Average . | . Influence Increases . | . Influence Decreases . | . Squads Dispatched . | . Investigation . | . Extermination . | . Reinforcement . | . Assault . | . Garrison . | . Intercept . | . Searches Triggered . | . Construction Impeded . | . Haulers Reinforced . | . Active Scanning Responses . | . Cargo Convoy Interrupts . | . Stealth | -11 --------- Run | Yrd Distress Signals . | . Communications Jammed . | . Distress Signals . | . Times Spotted 2 | 2 Peak Tracking Total 2 | 2 Tactical Retreats . | . Traps | -11 ------- Run | Yrd Traps Triggered . | . Indirectly . | . Trap Hack Attempts . | . Triggered . | . Disarmed . | . Reprogrammed . | . Reused . | . Traps Extracted . | . Installed . | . Triggered . | . Machines | -11 ---------- Run | Yrd Machines Disabled . | . Max in Single Turn . | . Machines Repaired . | . Machines Dismantled . | . Machines Sabotaged . | . Overloaded Fab Kills . | . Hacking | -11 --------- Run | Yrd Machines Accessed . | . Terminals . | . Fabricators . | . Repair Stations . | . Recycling Units . | . Scanalyzers . | . Garrison Access . | . Total Hacks . | . Successful . | . Failed . | . Catastrophic . | . Database Lockouts . | . Manual . | . Terminals . | . Fabricators . | . Repair Stations . | . Recycling Units . | . Scanalyzers . | . Garrison Access . | . Terminal Hacks . | . Fabricator Hacks . | . Repair Station Hacks . | . Recycling Unit Hacks . | . Scanalyzer . | . Garrison Access Hacks . | . Unauthorized Hacks . | . Terminals . | . Fabricators . | . Repair Stations . | . Recycling Units . | . Scanalyzers . | . Garrison Access . | . Data Cores Recovered . | . Used . | . Hacking Detections . | . Full Trace Events . | . Feedback Events . | . Feedback Blocked . | . Robot Schematics Acquired . | . Robots Built . | . Authchips . | . Time . | . Total Robot Build Rating . | . Part Schematics Acquired . | . Parts Built . | . Authchips . | . Time . | . Total Part Build Rating . | . Parts Repaired . | . Time . | . Parts Recycled . | . Recycled Matter . | . Retrieved Matter . | . Retrieved Components . | . Parts Scanalyzed . | . Part Schematics Acquired . | . Parts Damaged . | . Bothacking | -11 ------------ Run | Yrd Used RIF Installer . | . Robots Hacked . | . Non-combat . | . Combat . | . Robot Hacks Applied . | . Relay Couplers Released . | . Fabnet Peak Effective % . | . Robots Rewired . | . Allies Hacked . | . Hacks Repelled . | . Allies | -11 -------- Run | Yrd Total Allies . | . Largest Group . | . Highest-Rated Group . | . Highest-Rated Ally . | . Total Orders . | . Ally Attacks . | . Total Damage . | . Kills . | . Allies Corrupted . | . Allies Melted . | . Intel | -11 ------- Run | Yrd Active Infowar (turns) . | . Robot Analysis Total . | . Derelict Logs Recovered . | . Drone Launches . | . Drone Recoveries . | . Exploration | -11 ------------- Run | Yrd Turns Passed 1877 | 1877 Spaces Moved 41 | 41 Core 19 | 19 Treads 22 | 22 Legs . | . Wheels . | . Hover . | . Flight . | . Fastest Speed 50 | 50 Average Speed 112 | 112 Slowest Speed 200 | 200 Overloaded Moves . | . Propulsion Burnouts . | . Robots Hopped . | . Potential Cave-ins 1 | 1 Cave-ins Triggered 1 | 1 Exploration Rate (%) 7 | 7 Regions Visited . Branch Regions . Pre-discovered Areas . | . Known Exits Taken . | . Unknown Exits Taken . | . Scrap Searched . | . Spaces Dug . | . Terrain Destroyed . | . Melee . | . Projectile . | . AOE . | . Terrain Rammed . | . Walls Destroyed . | . Machines Disabled . | . Actions | -11 --------- Run | Yrd Total 1867 | 1867 Wait 1811 | 1811 Move 41 | 41 Hop . | . Pick Up 5 | 5 Fast Attach 1 | 1 Attach 4 | 4 Detach . | . Swap 2 | 2 Drop . | . Fire 3 | 3 Melee . | . Ram . | . Kick . | . Crush . | . Escape Stasis . | . Rewire . | . Trap . | . Miscellaneous . | . Route ------- -11/Scrapyard (discovered 1 exit: [*Mat]) History --------- Turn | Location | Event 29 | -11/Scrapyard | Discovered new exit (range 15) 1864 | -11/Scrapyard | Assembled infested the area 1875 | -11/Scrapyard | Core integrity fell below 50% 1878 | -11/Scrapyard | Core integrity fell below 20% 1879 | -11/Scrapyard | Crushed by falling debris 1879 | -11/Scrapyard | Smashed by cave-in Last Messages --------------- 00472_ T-07 Excavator is excavating. 00475_ K-01 Serf collects debris. 00477_ T-07 Excavator is excavating. 00478_ K-01 Serf collects debris. 00481_ T-07 Excavator is excavating. 00482_ K-01 Serf collects debris. 01864_ ALERT: Infestation in the scrapyard, dispatching Demolisher response squad. 01864_ C-30 ARC bursts open, deploying its payload. 01864_ D-53 Grenadier unfolds itself. 01865_ T-07 Excavator destroyed. 01869_ The unstable cave ceiling collapses. 01869_ Assault Rifle destroyed. 01874_ Lgt. Treads destroyed. 01875_ Lgt. Assault Rifle destroyed. 01879_ The unstable cave ceiling collapses. 01879_ Crushed by falling debris. 01879_ Ion Engine destroyed. 01879_ System corrupted by crushing effect (+4). Map ----- +----------------------------------------------------+ | ?????????????????????????????????????????????????? | | ?????????????????????????????????????????????????? | | ?????????????????????????????????????????????????? | | ?????????????????????????????????????????????????? | | ?????????????????????????????????????????????????? | | ?????????????????????????????????????????????????? | | ?????????????????????????????????????????????????? | | ?????????????????????????????????????????????????? | | ?????????????????????????????????????????????????? | | ?????????????????????????????????????????????????? | | ????????????????????????? ???????????????????????? | | ????????????????????????# ???? ????????????????? | | ???????????????????????? ???? ????????????????? | | ???????????????????????? ???? ????????????????? | | ?????????????????????#### ###? ????????????????? | | ?????????????????????# #? #????????????????? | | ?????????????????????# #? #????????????????? | | ?????????????????????# #? #????????????????? | | ?????????????????????# ## #????????????????? | | ?????????????????????# ## #????????????????? | | ?????????????????????? ## #????????????????? | | ?????????????????????## # ####?????????????? | | ?????????????######### #?????????????? | | ?????????????# #?????????????? | | ?????????????# = ### ####??????? | | ?????????????# = @ t ???? | | ?????????? = = t ???? | | ?????????? [ % ### #?????????? | | ???????????### = dd #?????????????? | | ?????????????# # #?????????????? | | ?????????????# ### # ###?????????????? | | ?????????????#### ####?##########???????????????? | | ????????????????# ##?????????????????????????????? | | ????????????????#????????????????????????????????? | | ?????????????????????????????????????????????????? | | ?????????????????????????????????????????????????? | | ?????????????????????????????????????????????????? | | ?????????????????????????????????????????????????? | | ?????????????????????????????????????????????????? | | ?????????????????????????????????????????????????? | | ?????????????????????????????????????????????????? | | ?????????????????????????????????????????????????? | | ?????????????????????????????????????????????????? | | ?????????????????????????????????????????????????? | | ?????????????????????????????????????????????????? | | ?????????????????????????????????????????????????? | | ?????????????????????????????????????????????????? | | ?????????????????????????????????????????????????? | | ?????????????????????????????????????????????????? | | ?????????????????????????????????????????????????? | +----------------------------------------------------+ Best States ------------- Heat Dissipation 25 Energy Generation 10 Energy Capacity 250 Matter Stores 195 Matter Capacity 300 Sight Range 16 Terrain Scan Density 10 Evasion (%) 50 Recoil Reduction 1 Item Schematics ----------------- None Robot Schematics ------------------ None Fabricated ------------ Nothing Repaired ---------- Nothing Alien Tech Used ----------------- None Achievements -------------- None Challenges ------------ None Game ------ Seed GravitonChromaticGravjet Manual? 0 Play Time 00:05:56 Cumulative 75.3 hours Start 2025.08.25 @ 15:50:20 End 2025.08.25 @ 15:53:18 Sessions 0 Manual Loads 0 Difficulty Rogue Special Mode None Game No. 58 Rogue 58 Adventurer 0 Explorer 0 Win Type - Total 2 Types 1/0/0/1/0/0/0/0/0/0 Lore% 60 Gallery% 52 Achievement% 45 Wizard Run 0 Options --------- Layout 1 ASCII 0 Keyboard 0 Movement Mouse Keybinds 0 Fullscreen 1 Font 24/Smallcaps Map View 50x35 Zoom Use 0% Tactical HUD 1 Map Filters NONE Filters NONE Steam 1 RUN: bb08da55-8e1c-4e47-968c-41053aea7c02